[Event "*** Titled Tuesday Blitz"]
[Site "Chess.com"]
[Date "2019.12.03"]
[Round "3"]
[White "arminmusovic"]
[Black "Lovkov_Roman"]
[Result "1/2-1/2"]
[WhiteElo "2547"]
[BlackElo "2765"]
[TimeControl "180+2"]
[EndTime "13:38:53 PST"]
[Termination "Game drawn by agreement"]

1. a3 {[%clk 0:03:01.9]} 1... e5 {[%clk 0:03:00.4]} 2. Nc3 {[%clk 0:03:03.3]}
2... Nf6 {[%clk 0:02:58]} 3. d4 {[%clk 0:03:04.6]} 3... exd4 {[%clk 0:02:56.3]}
4. Qxd4 {[%clk 0:03:06.5]} 4... Nc6 {[%clk 0:02:57.3]} 5. Qa4 {[%clk 0:03:07.8]}
5... Bc5 {[%clk 0:02:35.6]} 6. Bg5 {[%clk 0:03:08.2]} 6... h6 {[%clk 0:02:35.4]}
7. Bh4 {[%clk 0:03:09.2]} 7... g5 {[%clk 0:02:14.8]} 8. Bg3 {[%clk 0:03:09.5]}
8... d6 {[%clk 0:02:15.6]} 9. h4 {[%clk 0:02:56.7]} 9... g4 {[%clk 0:02:15]} 10.
h5 {[%clk 0:02:51.7]} 10... Qe7 {[%clk 0:01:59.1]} 11. Bh4 {[%clk 0:02:30.9]}
11... Qe5 {[%clk 0:01:39.2]} 12. O-O-O {[%clk 0:02:07.2]} 12... Be6 {[%clk
0:01:01.4]} 13. Bxf6 {[%clk 0:01:54.9]} 13... Qxf6 {[%clk 0:01:01.6]} 14. Ne4
{[%clk 0:01:55.8]} 14... Qe5 {[%clk 0:00:54.1]} 15. Nxc5 {[%clk 0:01:56.2]}
15... Qxc5 {[%clk 0:00:56]} 16. e3 {[%clk 0:01:53.5]} 16... g3 {[%clk
0:00:47.8]} 17. Nf3 {[%clk 0:01:39]} 17... gxf2 {[%clk 0:00:46]} 18. Nd4 {[%clk
0:01:40.3]} 18... Bd7 {[%clk 0:00:43.2]} 19. Bb5 {[%clk 0:01:41]} 19... O-O-O
{[%clk 0:00:35.8]} 20. Rhf1 {[%clk 0:01:31.4]} 20... Nxd4 {[%clk 0:00:25.2]} 21.
Bxd7+ {[%clk 0:01:29.2]} 21... Rxd7 {[%clk 0:00:27.1]} 22. exd4 {[%clk 0:01:29]}
22... Qg5+ {[%clk 0:00:24.7]} 23. Kb1 {[%clk 0:01:29.6]} 23... a6 {[%clk
0:00:24.7]} 24. Rxf2 {[%clk 0:01:24.5]} 24... Qxh5 {[%clk 0:00:26.1]} 25. Rdf1
{[%clk 0:01:25]} 25... Rg8 {[%clk 0:00:25.6]} 26. Rf5 {[%clk 0:01:04.4]} 26...
Qg6 {[%clk 0:00:21.2]} 27. Rf6 {[%clk 0:01:02.4]} 27... Qxg2 {[%clk 0:00:21.6]}
28. b3 {[%clk 0:00:58]} 28... Qe4 {[%clk 0:00:21.4]} 29. Rxh6 {[%clk 0:00:52.2]}
29... Re7 {[%clk 0:00:21.1]} 30. Qc4 {[%clk 0:00:49.9]} 30... d5 {[%clk
0:00:18.3]} 31. Qc5 {[%clk 0:00:48.6]} 31... Kb8 {[%clk 0:00:19]} 32. Rhf6
{[%clk 0:00:46.7]} 32... Rc8 {[%clk 0:00:12.6]} 33. Kb2 {[%clk 0:00:44.4]} 33...
Re6 {[%clk 0:00:13.3]} 34. R6f4 {[%clk 0:00:32.5]} 34... Qe2 {[%clk 0:00:10.7]}
35. Qxd5 {[%clk 0:00:27.9]} 35... Rc6 {[%clk 0:00:11.7]} 36. Qe4 {[%clk
0:00:29.4]} 36... Qd2 {[%clk 0:00:09.8]} 37. R1f3 {[%clk 0:00:20.4]} 37... Rd8
{[%clk 0:00:09.9]} 38. a4 {[%clk 0:00:16.5]} 38... f6 {[%clk 0:00:10.1]} 39. Rf2
{[%clk 0:00:12.8]} 39... Qc3+ {[%clk 0:00:10.9]} 40. Ka2 {[%clk 0:00:14.4]}
40... Rdd6 {[%clk 0:00:12.1]} 41. Qe8+ {[%clk 0:00:15.1]} 41... Ka7 {[%clk
0:00:13.1]} 42. Qe4 {[%clk 0:00:17]} 42... Qb4 {[%clk 0:00:13]} 43. R4f3 {[%clk
0:00:18.1]} 43... Rxd4 {[%clk 0:00:13.7]} 44. Qe3 {[%clk 0:00:16.6]} 44... Qc5
{[%clk 0:00:14.8]} 45. c3 {[%clk 0:00:16.5]} 45... Rd5 {[%clk 0:00:14.8]} 46.
Qxc5+ {[%clk 0:00:17.8]} 46... Rdxc5 {[%clk 0:00:16.7]} 47. c4 {[%clk
0:00:19.4]} 47... Re5 {[%clk 0:00:15.6]} 48. Rxf6 {[%clk 0:00:20.3]} 48... Rxf6
{[%clk 0:00:17]} 49. Rxf6 {[%clk 0:00:22.2]} 49... a5 {[%clk 0:00:18.3]} 50. Rf7
{[%clk 0:00:22.8]} 50... c6 {[%clk 0:00:19.4]} 51. Rf3 {[%clk 0:00:21.9]} 51...
Kb6 {[%clk 0:00:20.7]} 52. Kb2 {[%clk 0:00:23.5]} 52... Kc5 {[%clk 0:00:22.1]}
53. Kc3 {[%clk 0:00:25.1]} 53... Rh5 {[%clk 0:00:23.3]} 54. Rg3 {[%clk
0:00:26.4]} 54... Re5 {[%clk 0:00:24.2]} 1/2-1/2

[Event "*** Titled Tuesday Blitz"]
[Site "Chess.com"]
[Date "2019.12.03"]
[Round "3"]
[White "brendan174"]
[Black "ruvat"]
[Result "0-1"]
[WhiteElo "2122"]
[BlackElo "2368"]
[TimeControl "180+2"]
[EndTime "13:38:53 PST"]
[Termination "ruvat won by resignation"]

1. d4 {[%clk 0:03:01.9]} 1... d6 {[%clk 0:03:00.6]} 2. Nc3 {[%clk 0:03:01.5]}
2... Nf6 {[%clk 0:03:00.3]} 3. e4 {[%clk 0:03:02.5]} 3... g6 {[%clk 0:03:01.8]}
4. Be3 {[%clk 0:03:03.5]} 4... Bg7 {[%clk 0:03:02.8]} 5. f3 {[%clk 0:03:04.7]}
5... c6 {[%clk 0:03:04.1]} 6. Qd2 {[%clk 0:03:04.3]} 6... b5 {[%clk 0:03:05.4]}
7. h4 {[%clk 0:03:04.1]} 7... h5 {[%clk 0:03:05]} 8. Bd3 {[%clk 0:03:03.2]} 8...
Qc7 {[%clk 0:03:03.8]} 9. Nge2 {[%clk 0:03:00.8]} 9... Nbd7 {[%clk 0:03:03.4]}
10. a3 {[%clk 0:02:52.7]} 10... a5 {[%clk 0:03:00.1]} 11. O-O {[%clk 0:02:50.3]}
11... Bb7 {[%clk 0:02:58.1]} 12. Nd1 {[%clk 0:02:41.3]} 12... O-O {[%clk
0:02:52.3]} 13. Nf2 {[%clk 0:02:41]} 13... e5 {[%clk 0:02:47.2]} 14. Bh6 {[%clk
0:02:34.5]} 14... d5 {[%clk 0:02:35]} 15. Bxg7 {[%clk 0:02:30.2]} 15... Kxg7
{[%clk 0:02:36]} 16. c3 {[%clk 0:02:16.8]} 16... Qb6 {[%clk 0:02:30.5]} 17. Kh1
{[%clk 0:02:15.3]} 17... c5 {[%clk 0:02:28.5]} 18. Rad1 {[%clk 0:01:38.4]} 18...
Rad8 {[%clk 0:02:06.3]} 19. dxe5 {[%clk 0:01:17.5]} 19... Nxe5 {[%clk
0:02:02.1]} 20. Qg5 {[%clk 0:01:15.6]} 20... Nxd3 {[%clk 0:01:54.3]} 21. Rxd3
{[%clk 0:01:15.1]} 21... dxe4 {[%clk 0:01:40.3]} 22. Rxd8 {[%clk 0:01:15.8]}
22... Rxd8 {[%clk 0:01:38]} 23. Nxe4 {[%clk 0:01:16.6]} 23... Bxe4 {[%clk
0:01:20.6]} 24. fxe4 {[%clk 0:01:17]} 24... Nxe4 {[%clk 0:01:21.3]} 25. Qe5+
{[%clk 0:01:16.6]} 25... Nf6 {[%clk 0:01:21.6]} 26. Ng3 {[%clk 0:01:07.7]} 26...
Rd5 {[%clk 0:01:17.8]} 27. Rxf6 {[%clk 0:00:58.7]} 27... Qxf6 {[%clk 0:01:01.2]}
28. Qxd5 {[%clk 0:00:59.4]} 28... Qxh4+ {[%clk 0:01:01.9]} 29. Kg1 {[%clk
0:00:59.7]} 29... Qxg3 {[%clk 0:01:02.7]} 30. Qxc5 {[%clk 0:01:00.3]} 30... h4
{[%clk 0:00:51.5]} 31. Kh1 {[%clk 0:00:26]} 31... h3 {[%clk 0:00:46.2]} 32. gxh3
{[%clk 0:00:17.6]} 32... Qxh3+ {[%clk 0:00:48.1]} 33. Kg1 {[%clk 0:00:19]} 33...
Qg3+ {[%clk 0:00:46.7]} 34. Kf1 {[%clk 0:00:18.2]} 34... Qd3+ {[%clk 0:00:43.3]}
35. Kf2 {[%clk 0:00:10.5]} 35... a4 {[%clk 0:00:32.6]} 36. Qe5+ {[%clk
0:00:10.4]} 36... Kh7 {[%clk 0:00:32.3]} 37. Qh2+ {[%clk 0:00:10.7]} 37... Kg8
{[%clk 0:00:30.5]} 38. Qb8+ {[%clk 0:00:11.5]} 38... Kg7 {[%clk 0:00:31.2]} 39.
Qe5+ {[%clk 0:00:12.6]} 39... Kf8 {[%clk 0:00:32.2]} 40. Qb8+ {[%clk 0:00:12.6]}
40... Ke7 {[%clk 0:00:32.8]} 41. Qb7+ {[%clk 0:00:13.7]} 41... Qd7 {[%clk
0:00:32.2]} 42. Qe4+ {[%clk 0:00:13.6]} 42... Kf8 {[%clk 0:00:32.2]} 43. Qa8+
{[%clk 0:00:13.3]} 43... Kg7 {[%clk 0:00:32]} 44. Qb8 {[%clk 0:00:10.8]} 44...
Qf5+ {[%clk 0:00:30]} 45. Ke2 {[%clk 0:00:09.8]} 45... g5 {[%clk 0:00:30.7]} 46.
Qd8 {[%clk 0:00:07.8]} 46... Qe4+ {[%clk 0:00:29.7]} 47. Kf2 {[%clk 0:00:07.7]}
47... Qf4+ {[%clk 0:00:27.5]} 48. Ke2 {[%clk 0:00:06.8]} 48... g4 {[%clk
0:00:28.8]} 49. Qd5 {[%clk 0:00:07.7]} 49... Qc4+ {[%clk 0:00:17.4]} 50. Qxc4
{[%clk 0:00:06.9]} 50... bxc4 {[%clk 0:00:18.3]} 0-1

[Event "*** Titled Tuesday Blitz"]
[Site "Chess.com"]
[Date "2019.12.03"]
[Round "3"]
[White "RitvarsReimanis"]
[Black "JonahWillow"]
[Result "0-1"]
[WhiteElo "2574"]
[BlackElo "2788"]
[TimeControl "180+2"]
[EndTime "13:38:54 PST"]
[Termination "JonahWillow won by resignation"]

1. d4 {[%clk 0:03:01.9]} 1... d5 {[%clk 0:03:00.2]} 2. c4 {[%clk 0:03:02.6]}
2... dxc4 {[%clk 0:03:02.1]} 3. Nf3 {[%clk 0:03:02.6]} 3... a6 {[%clk
0:03:02.7]} 4. e3 {[%clk 0:03:02.2]} 4... Bg4 {[%clk 0:03:02.7]} 5. Bxc4 {[%clk
0:03:02.9]} 5... e6 {[%clk 0:03:03.2]} 6. Qa4+ {[%clk 0:02:33.3]} 6... Nd7
{[%clk 0:02:53.6]} 7. Be2 {[%clk 0:02:25.1]} 7... Nf6 {[%clk 0:02:49.5]} 8. O-O
{[%clk 0:02:25.7]} 8... Bd6 {[%clk 0:02:48]} 9. Nc3 {[%clk 0:02:26]} 9... O-O
{[%clk 0:02:44.9]} 10. b4 {[%clk 0:02:12.1]} 10... e5 {[%clk 0:02:26.2]} 11. Rd1
{[%clk 0:02:08.4]} 11... e4 {[%clk 0:01:59.6]} 12. Ne1 {[%clk 0:02:09.4]} 12...
Re8 {[%clk 0:01:52.4]} 13. h3 {[%clk 0:02:06.7]} 13... Bxe2 {[%clk 0:01:51.4]}
14. Nxe2 {[%clk 0:02:08.6]} 14... Nd5 {[%clk 0:01:51.9]} 15. a3 {[%clk
0:02:06.4]} 15... b5 {[%clk 0:01:43.3]} 16. Qb3 {[%clk 0:02:07.4]} 16... N7b6
{[%clk 0:01:45.2]} 17. Nc3 {[%clk 0:02:02.9]} 17... Nxc3 {[%clk 0:01:42.4]} 18.
Qxc3 {[%clk 0:02:04.8]} 18... Qg5 {[%clk 0:01:43.1]} 19. f4 {[%clk 0:01:51.7]}
19... Qg3 {[%clk 0:01:33.5]} 20. Qd2 {[%clk 0:01:45.6]} 20... Nc4 {[%clk
0:01:28.5]} 21. Qf2 {[%clk 0:01:46]} 21... Qg6 {[%clk 0:01:30.1]} 22. g4 {[%clk
0:01:21.2]} 22... f5 {[%clk 0:01:25.1]} 23. Qg3 {[%clk 0:01:19.8]} 23... a5
{[%clk 0:01:14.7]} 24. bxa5 {[%clk 0:01:15.6]} 24... Rxa5 {[%clk 0:01:16.3]} 25.
Rb1 {[%clk 0:01:12.7]} 25... c6 {[%clk 0:01:12.7]} 26. Ng2 {[%clk 0:01:13.3]}
26... fxg4 {[%clk 0:01:02.6]} 27. hxg4 {[%clk 0:01:13.2]} 27... Bxa3 {[%clk
0:00:58.4]} 28. d5 {[%clk 0:01:06.7]} 28... cxd5 {[%clk 0:00:52.5]} 29. Rxd5
{[%clk 0:01:06.8]} 29... Qc6 {[%clk 0:00:50.5]} 30. Rd1 {[%clk 0:01:02.7]} 30...
Bxc1 {[%clk 0:00:47.4]} 31. Rdxc1 {[%clk 0:00:49.5]} 31... Ra2 {[%clk
0:00:46.2]} 32. Ra1 {[%clk 0:00:23.4]} 32... Rea8 {[%clk 0:00:39.3]} 33. Rxa2
{[%clk 0:00:23.5]} 33... Rxa2 {[%clk 0:00:41.2]} 34. Qe1 {[%clk 0:00:24.6]}
34... Qd7 {[%clk 0:00:36.5]} 35. f5 {[%clk 0:00:18]} 35... Qd3 {[%clk
0:00:32.7]} 36. Nf4 {[%clk 0:00:15.3]} 36... Qxe3+ {[%clk 0:00:22.7]} 37. Qxe3
{[%clk 0:00:16]} 37... Nxe3 {[%clk 0:00:24.6]} 38. Rc8+ {[%clk 0:00:11.2]} 38...
Kf7 {[%clk 0:00:25.5]} 39. Rc7+ {[%clk 0:00:11.8]} 39... Kf6 {[%clk 0:00:24.5]}
40. Nh5+ {[%clk 0:00:13]} 40... Ke5 {[%clk 0:00:22]} 41. Rxg7 {[%clk 0:00:12.6]}
41... Rg2+ {[%clk 0:00:20.7]} 42. Kh1 {[%clk 0:00:13.4]} 42... Rxg4 {[%clk
0:00:22.6]} 43. f6 {[%clk 0:00:10.2]} 43... Rh4+ {[%clk 0:00:21.4]} 44. Kg1
{[%clk 0:00:11.5]} 44... Rxh5 {[%clk 0:00:23]} 45. f7 {[%clk 0:00:13]} 45... Rf5
{[%clk 0:00:17.5]} 46. Rxh7 {[%clk 0:00:13]} 46... Ke6 {[%clk 0:00:17.1]} 47.
Rh6+ {[%clk 0:00:13.5]} 47... Kxf7 {[%clk 0:00:18.3]} 48. Rb6 {[%clk 0:00:15.4]}
48... Nc4 {[%clk 0:00:19]} 49. Rb8 {[%clk 0:00:16.2]} 49... Ke6 {[%clk
0:00:20.3]} 50. Kh2 {[%clk 0:00:17.6]} 50... Kf6 {[%clk 0:00:21.5]} 51. Kg3
{[%clk 0:00:19.5]} 51... e3 {[%clk 0:00:22.8]} 52. Kg4 {[%clk 0:00:21.4]} 52...
Rg5+ {[%clk 0:00:23.4]} 53. Kf4 {[%clk 0:00:22.5]} 53... Rf5+ {[%clk 0:00:25.3]}
54. Ke4 {[%clk 0:00:23.3]} 54... Re5+ {[%clk 0:00:26.6]} 55. Kd3 {[%clk
0:00:23.8]} 55... e2 {[%clk 0:00:28.5]} 56. Rf8+ {[%clk 0:00:24.8]} 56... Kg7
{[%clk 0:00:30]} 0-1

[Event "*** Titled Tuesday Blitz"]
[Site "Chess.com"]
[Date "2019.12.03"]
[Round "3"]
[White "Fiona"]
[Black "LimeInTheCoconut"]
[Result "0-1"]
[WhiteElo "2071"]
[BlackElo "2347"]
[TimeControl "180+2"]
[EndTime "13:39:07 PST"]
[Termination "LimeInTheCoconut won on time"]

1. e4 {[%clk 0:03:01.9]} 1... c5 {[%clk 0:03:00.3]} 2. Nc3 {[%clk 0:03:03.1]}
2... Nc6 {[%clk 0:03:00.6]} 3. f4 {[%clk 0:03:04.6]} 3... e6 {[%clk 0:02:58.4]}
4. Nf3 {[%clk 0:03:06]} 4... d6 {[%clk 0:02:58.4]} 5. d3 {[%clk 0:03:04.9]} 5...
Nf6 {[%clk 0:02:54.8]} 6. g3 {[%clk 0:03:03.3]} 6... Be7 {[%clk 0:02:55.3]} 7.
Bg2 {[%clk 0:03:04.8]} 7... O-O {[%clk 0:02:50.2]} 8. O-O {[%clk 0:03:05.9]}
8... d5 {[%clk 0:02:39.6]} 9. Qe1 {[%clk 0:02:53.3]} 9... dxe4 {[%clk
0:02:38.2]} 10. dxe4 {[%clk 0:02:52]} 10... b6 {[%clk 0:02:23.2]} 11. h3 {[%clk
0:02:46.3]} 11... Ba6 {[%clk 0:02:21.6]} 12. Rf2 {[%clk 0:02:45.3]} 12... Qc7
{[%clk 0:02:01.7]} 13. Be3 {[%clk 0:02:43.1]} 13... Rad8 {[%clk 0:02:00.9]} 14.
Rd1 {[%clk 0:02:39.5]} 14... Rxd1 {[%clk 0:02:00.5]} 15. Qxd1 {[%clk 0:02:41.4]}
15... Rd8 {[%clk 0:02:00.8]} 16. Rd2 {[%clk 0:02:40.4]} 16... Rxd2 {[%clk
0:02:00.1]} 17. Qxd2 {[%clk 0:02:42.3]} 17... Qd8 {[%clk 0:01:47.7]} 18. Qxd8+
{[%clk 0:02:35.2]} 18... Bxd8 {[%clk 0:01:49.6]} 19. Bf1 {[%clk 0:02:33.2]}
19... Bxf1 {[%clk 0:01:48.9]} 20. Kxf1 {[%clk 0:02:35.1]} 20... Nd7 {[%clk
0:01:28.1]} 21. a3 {[%clk 0:02:32.4]} 21... f5 {[%clk 0:01:25.2]} 22. exf5
{[%clk 0:02:15.2]} 22... exf5 {[%clk 0:01:25.7]} 23. Nd5 {[%clk 0:02:10.3]}
23... Kf7 {[%clk 0:01:21.4]} 24. c4 {[%clk 0:02:03.9]} 24... Na5 {[%clk
0:01:14.6]} 25. Nd2 {[%clk 0:02:03.8]} 25... Nf6 {[%clk 0:01:14.1]} 26. Nc3
{[%clk 0:01:47.8]} 26... a6 {[%clk 0:00:58.3]} 27. b4 {[%clk 0:01:34.1]} 27...
cxb4 {[%clk 0:00:57.9]} 28. axb4 {[%clk 0:01:36]} 28... Nc6 {[%clk 0:00:53.2]}
29. b5 {[%clk 0:01:27.1]} 29... axb5 {[%clk 0:00:49.8]} 30. cxb5 {[%clk
0:01:16.4]} 30... Na5 {[%clk 0:00:50]} 31. Ke2 {[%clk 0:01:10.9]} 31... Ke6
{[%clk 0:00:49]} 32. Kd3 {[%clk 0:01:08.5]} 32... Nd5 {[%clk 0:00:43.7]} 33.
Nxd5 {[%clk 0:00:47.8]} 33... Kxd5 {[%clk 0:00:44.5]} 34. g4 {[%clk 0:00:39.6]}
34... g6 {[%clk 0:00:43.8]} 35. Bf2 {[%clk 0:00:18.7]} 35... fxg4 {[%clk
0:00:42.6]} 36. hxg4 {[%clk 0:00:19.6]} 36... h5 {[%clk 0:00:44.5]} 37. gxh5
{[%clk 0:00:19.7]} 37... gxh5 {[%clk 0:00:46.4]} 38. Nf3 {[%clk 0:00:12.5]}
38... Nc4 {[%clk 0:00:42.5]} 39. Bh4 {[%clk 0:00:11.4]} 39... Bc7 {[%clk
0:00:40.5]} 40. f5 {[%clk 0:00:10.2]} 40... Na3 {[%clk 0:00:39.1]} 41. Nd4
{[%clk 0:00:09.2]} 41... Be5 {[%clk 0:00:37.6]} 42. Ne6 {[%clk 0:00:10]} 42...
Nxb5 {[%clk 0:00:37]} 43. Nf8 {[%clk 0:00:04.9]} 43... Bd6 {[%clk 0:00:30.2]}
44. Nd7 {[%clk 0:00:05.5]} 44... Bc7 {[%clk 0:00:25.5]} 45. f6 {[%clk
0:00:06.5]} 45... Ke6 {[%clk 0:00:24.6]} 46. Nf8+ {[%clk 0:00:05.8]} 46... Kf7
{[%clk 0:00:25.2]} 47. Nd7 {[%clk 0:00:05.9]} 47... Nd6 {[%clk 0:00:17]} 48. Ke3
{[%clk 0:00:03.1]} 48... Ke6 {[%clk 0:00:16.3]} 49. Nxb6 {[%clk 0:00:03.3]}
49... Bxb6+ {[%clk 0:00:16.9]} 50. Kf4 {[%clk 0:00:05]} 50... Nf7 {[%clk
0:00:16.7]} 51. Bg5 {[%clk 0:00:02.3]} 51... Bc7+ {[%clk 0:00:16.9]} 0-1

[Event "*** Titled Tuesday Blitz"]
[Site "Chess.com"]
[Date "2019.12.03"]
[Round "3"]
[White "MITerryble"]
[Black "Supernotar"]
[Result "1-0"]
[WhiteElo "2861"]
[BlackElo "2627"]
[TimeControl "180+2"]
[EndTime "13:39:12 PST"]
[Termination "MITerryble won by checkmate"]

1. e4 {[%clk 0:03:01.9]} 1... c6 {[%clk 0:03:00.7]} 2. Nf3 {[%clk 0:03:01.6]}
2... d5 {[%clk 0:03:01.1]} 3. exd5 {[%clk 0:03:03.5]} 3... cxd5 {[%clk
0:03:00.9]} 4. Ne5 {[%clk 0:03:04.8]} 4... Nf6 {[%clk 0:02:56.8]} 5. d4 {[%clk
0:03:05.9]} 5... Nc6 {[%clk 0:02:55.1]} 6. c3 {[%clk 0:03:07.1]} 6... g6 {[%clk
0:02:47.4]} 7. Bd3 {[%clk 0:03:06.8]} 7... Bg7 {[%clk 0:02:48]} 8. Qe2 {[%clk
0:03:05.6]} 8... O-O {[%clk 0:02:47]} 9. f4 {[%clk 0:03:06.3]} 9... Bf5 {[%clk
0:02:46.6]} 10. Nd2 {[%clk 0:03:07.2]} 10... e6 {[%clk 0:02:39.9]} 11. O-O
{[%clk 0:03:06.8]} 11... Bxd3 {[%clk 0:02:34.9]} 12. Qxd3 {[%clk 0:03:06]} 12...
Ne7 {[%clk 0:02:35.9]} 13. g4 {[%clk 0:03:03.3]} 13... Nc8 {[%clk 0:02:33.4]}
14. f5 {[%clk 0:02:46.3]} 14... exf5 {[%clk 0:02:31.9]} 15. gxf5 {[%clk
0:02:47.5]} 15... Nd6 {[%clk 0:02:32.8]} 16. fxg6 {[%clk 0:02:47.7]} 16... hxg6
{[%clk 0:02:33.2]} 17. Qh3 {[%clk 0:02:42.4]} 17... Qc8 {[%clk 0:02:09.1]} 18.
Qg2 {[%clk 0:02:36.7]} 18... Qe6 {[%clk 0:02:05.6]} 19. Ndf3 {[%clk 0:02:28]}
19... Nfe4 {[%clk 0:02:03.1]} 20. Bf4 {[%clk 0:02:28.9]} 20... Rae8 {[%clk
0:01:50.2]} 21. Rae1 {[%clk 0:02:28.6]} 21... b5 {[%clk 0:01:29.1]} 22. h4
{[%clk 0:01:42.8]} 22... Nc4 {[%clk 0:00:58.7]} 23. Nxc4 {[%clk 0:00:42.5]}
23... bxc4 {[%clk 0:00:59.5]} 24. Ng5 {[%clk 0:00:43.2]} 24... Qb6 {[%clk
0:00:55.5]} 25. Nxe4 {[%clk 0:00:40.7]} 25... dxe4 {[%clk 0:00:53.6]} 26. Re3
{[%clk 0:00:31.2]} 26... Re6 {[%clk 0:00:46.8]} 27. Rg3 {[%clk 0:00:29.5]} 27...
Rfe8 {[%clk 0:00:37.2]} 28. h5 {[%clk 0:00:27.7]} 28... e3 {[%clk 0:00:38]} 29.
hxg6 {[%clk 0:00:28.9]} 29... fxg6 {[%clk 0:00:37.3]} 30. Re1 {[%clk 0:00:16]}
30... e2 {[%clk 0:00:37.4]} 31. Qd5 {[%clk 0:00:16.1]} 31... Qxb2 {[%clk
0:00:24.3]} 32. Re3 {[%clk 0:00:11]} 32... Kf7 {[%clk 0:00:11.9]} 33. R1xe2
{[%clk 0:00:09.4]} 33... Qb1+ {[%clk 0:00:11.8]} 34. Kg2 {[%clk 0:00:05.6]}
34... Qf5 {[%clk 0:00:11.8]} 35. Qxf5+ {[%clk 0:00:03.8]} 35... gxf5 {[%clk
0:00:12.9]} 36. Rxe6 {[%clk 0:00:04.2]} 36... Rxe6 {[%clk 0:00:14.8]} 37. Rb2
{[%clk 0:00:05.1]} 37... Rb6 {[%clk 0:00:14]} 38. Rxb6 {[%clk 0:00:05.5]} 38...
axb6 {[%clk 0:00:15.2]} 39. a4 {[%clk 0:00:07.4]} 39... Ke6 {[%clk 0:00:13.6]}
40. Bc7 {[%clk 0:00:08.6]} 40... Kd5 {[%clk 0:00:14.6]} 41. Bxb6 {[%clk
0:00:10]} 41... Ke4 {[%clk 0:00:15]} 42. Ba5 {[%clk 0:00:10.3]} 42... Kd3 {[%clk
0:00:15.6]} 43. Bb4 {[%clk 0:00:11.3]} 43... Ke2 {[%clk 0:00:15.4]} 44. Bd6
{[%clk 0:00:08.9]} 44... Bh6 {[%clk 0:00:15]} 45. a5 {[%clk 0:00:07.2]} 45... f4
{[%clk 0:00:15.2]} 46. Bxf4 {[%clk 0:00:08.4]} 46... Bxf4 {[%clk 0:00:16]} 47.
a6 {[%clk 0:00:10.3]} 47... Bb8 {[%clk 0:00:15.7]} 48. d5 {[%clk 0:00:11.8]}
48... Kd3 {[%clk 0:00:15.6]} 49. d6 {[%clk 0:00:13.3]} 49... Kxc3 {[%clk
0:00:13.7]} 50. d7 {[%clk 0:00:14.3]} 50... Bc7 {[%clk 0:00:09.6]} 51. a7 {[%clk
0:00:15.6]} 51... Kb2 {[%clk 0:00:09.7]} 52. a8=Q {[%clk 0:00:17.5]} 52... c3
{[%clk 0:00:10.6]} 53. Qb7+ {[%clk 0:00:18.7]} 53... Ka1 {[%clk 0:00:10.8]} 54.
Qxc7 {[%clk 0:00:19.6]} 54... c2 {[%clk 0:00:12.3]} 55. d8=Q {[%clk 0:00:19.6]}
55... c1=Q {[%clk 0:00:13]} 56. Qxc1+ {[%clk 0:00:20.1]} 56... Ka2 {[%clk
0:00:14.5]} 57. Qd5# {[%clk 0:00:19.5]} 1-0

[Event "*** Titled Tuesday Blitz"]
[Site "Chess.com"]
[Date "2019.12.03"]
[Round "3"]
[White "Firouzja2003"]
[Black "pouya21"]
[Result "0-1"]
[WhiteElo "3152"]
[BlackElo "2737"]
[TimeControl "180+2"]
[EndTime "13:39:16 PST"]
[Termination "pouya21 won on time"]

1. c4 {[%clk 0:02:59.7]} 1... c5 {[%clk 0:02:48.9]} 2. g3 {[%clk 0:02:57.7]}
2... g6 {[%clk 0:02:49.3]} 3. Bg2 {[%clk 0:02:58.9]} 3... Bg7 {[%clk 0:02:49.2]}
4. Nc3 {[%clk 0:03:00.2]} 4... Nc6 {[%clk 0:02:50.4]} 5. a3 {[%clk 0:02:58.6]}
5... Nf6 {[%clk 0:02:49.8]} 6. Rb1 {[%clk 0:02:57.5]} 6... O-O {[%clk
0:02:47.4]} 7. b4 {[%clk 0:02:56.9]} 7... cxb4 {[%clk 0:02:48.8]} 8. axb4 {[%clk
0:02:58.6]} 8... a6 {[%clk 0:02:50.5]} 9. e3 {[%clk 0:02:54.4]} 9... Ne5 {[%clk
0:02:43.9]} 10. d3 {[%clk 0:02:51.9]} 10... d6 {[%clk 0:02:30.3]} 11. h3 {[%clk
0:02:44.7]} 11... Bf5 {[%clk 0:02:28]} 12. e4 {[%clk 0:02:42.6]} 12... Bd7
{[%clk 0:02:29.2]} 13. Nge2 {[%clk 0:02:38.5]} 13... Rc8 {[%clk 0:02:26.2]} 14.
Be3 {[%clk 0:02:32.8]} 14... b5 {[%clk 0:02:14.2]} 15. f4 {[%clk 0:02:25]} 15...
Nc6 {[%clk 0:01:57.1]} 16. cxb5 {[%clk 0:02:22.5]} 16... axb5 {[%clk 0:01:59]}
17. Nxb5 {[%clk 0:02:13.9]} 17... Rb8 {[%clk 0:02:00.3]} 18. Nec3 {[%clk
0:02:09.5]} 18... Nh5 {[%clk 0:02:01.4]} 19. Kf2 {[%clk 0:01:22.7]} 19... Nxb4
{[%clk 0:02:00.7]} 20. Qd2 {[%clk 0:01:24]} 20... Bxb5 {[%clk 0:01:55.7]} 21.
Rxb4 {[%clk 0:01:23.5]} 21... Qa5 {[%clk 0:01:43.2]} 22. Rxb5 {[%clk 0:00:51.4]}
22... Rxb5 {[%clk 0:01:41.2]} 23. Nxb5 {[%clk 0:00:53.3]} 23... Qxb5 {[%clk
0:01:42.6]} 24. Rc1 {[%clk 0:00:51.2]} 24... Qa6 {[%clk 0:01:34.4]} 25. Bf3
{[%clk 0:00:50.9]} 25... Nf6 {[%clk 0:01:33.1]} 26. d4 {[%clk 0:00:49.6]} 26...
Rc8 {[%clk 0:01:26.3]} 27. e5 {[%clk 0:00:41.8]} 27... Rxc1 {[%clk 0:01:20.3]}
28. Qxc1 {[%clk 0:00:43.7]} 28... Nd7 {[%clk 0:01:19.5]} 29. Qc7 {[%clk
0:00:34.5]} 29... Qa2+ {[%clk 0:01:18.6]} 30. Be2 {[%clk 0:00:35.4]} 30... Qa4
{[%clk 0:01:17.4]} 31. Qd8+ {[%clk 0:00:18.3]} 31... Bf8 {[%clk 0:01:06.3]} 32.
h4 {[%clk 0:00:19.3]} 32... dxe5 {[%clk 0:01:04.4]} 33. dxe5 {[%clk 0:00:20.4]}
33... e6 {[%clk 0:00:47.6]} 34. h5 {[%clk 0:00:21.5]} 34... gxh5 {[%clk
0:00:47.2]} 35. Qg5+ {[%clk 0:00:17.2]} 35... Bg7 {[%clk 0:00:47.1]} 36. Bxh5
{[%clk 0:00:12]} 36... Qc2+ {[%clk 0:00:47.5]} 37. Be2 {[%clk 0:00:13.3]} 37...
Nf8 {[%clk 0:00:48.3]} 38. Qd8 {[%clk 0:00:13.9]} 38... Qc6 {[%clk 0:00:43.9]}
39. Bf3 {[%clk 0:00:09.6]} 39... Qc2+ {[%clk 0:00:44.6]} 40. Be2 {[%clk
0:00:09.9]} 40... Qc6 {[%clk 0:00:45.6]} 41. g4 {[%clk 0:00:11.3]} 41... h6
{[%clk 0:00:45.7]} 42. Bf3 {[%clk 0:00:11.6]} 42... Qc2+ {[%clk 0:00:45.6]} 43.
Kg3 {[%clk 0:00:12.9]} 43... Qc3 {[%clk 0:00:45.3]} 44. Bf2 {[%clk 0:00:13.8]}
44... Qc4 {[%clk 0:00:38.5]} 45. Qe7 {[%clk 0:00:13.4]} 45... Qxf4+ {[%clk
0:00:38.4]} 46. Kxf4 {[%clk 0:00:14.8]} 46... Ng6+ {[%clk 0:00:40.3]} 47. Ke4
{[%clk 0:00:16.5]} 47... Nxe7 {[%clk 0:00:41.6]} 48. Bg3 {[%clk 0:00:18.2]}
48... Ng6 {[%clk 0:00:42.8]} 49. Be2 {[%clk 0:00:18.8]} 49... Bf8 {[%clk
0:00:44.2]} 50. Bc4 {[%clk 0:00:20]} 50... Kg7 {[%clk 0:00:45.6]} 51. Bb3 {[%clk
0:00:21.3]} 51... Be7 {[%clk 0:00:47.2]} 52. Bc4 {[%clk 0:00:22.7]} 52... Bd8
{[%clk 0:00:48.8]} 53. Bb3 {[%clk 0:00:23.8]} 53... Bc7 {[%clk 0:00:50.5]} 54.
Bc4 {[%clk 0:00:25]} 54... Nf8 {[%clk 0:00:51.8]} 55. Bb3 {[%clk 0:00:25.7]}
55... Nd7 {[%clk 0:00:53]} 56. Bc4 {[%clk 0:00:26.6]} 56... Bb6 {[%clk
0:00:54.4]} 57. Bb5 {[%clk 0:00:25.9]} 57... Nc5+ {[%clk 0:00:55]} 58. Kf3
{[%clk 0:00:27]} 58... Nb3 {[%clk 0:00:55.6]} 59. Bc4 {[%clk 0:00:25.9]} 59...
Nd2+ {[%clk 0:00:56]} 0-1